{"text_format":"3","workbook":"xlsx","n_sheets":2,"sheets":["ПЕЧАТНАЯ ФОРМА 10ПБ","Лист1"],"not_rendered":{"comments":1},"read":"whole","date_system":"1900"}

{"sheet":"ПЕЧАТНАЯ ФОРМА 10ПБ","index":0,"n_rows":114,"n_cols":6,"rows_kept":114,"merged":[[7,2,7,6],[26,2,26,4],[27,2,27,4],[29,2,29,4],[73,2,73,4],[83,2,83,4],[84,2,84,4]]}
[{"$nulls":3},"Предоставляется 2 раза в год (за год -до 25.01, "]
[{"$nulls":3},"за полугодие -до 15.07) профкомами в РОБ ПРЗ РФ"]
[]
[null,null,"ОТЧЕТ О ДОХОДАХ И РАСХОДАХ ПРОФСОЮЗНОЙ ОРГАНИЗАЦИИ (ф. 10-ПБ)"]
[]
[null,null,"наименование профсоюзной организации"]
[{"$nulls":3},"за 2023 г"]
[null,null,"СВЕДЕНИЯ О ЧЛЕНСКИХ ПРОФСОЮЗНЫХ ВЗНОСАХ И ИХ РАСПРЕДЕЛЕНИИ"]
[{"$nulls":5},"таблица  1"]
[{"$nulls":3},"ПРОФКОМ","РЕСКОМ","ИТОГО"]
[null,null,"Установленный процент распределения",null,null,{"$f":"D11+E11","v":{"v":0,"d":"0.00"}}]
[null,null,"Поступление профвзносов (руб.)",{"$f":"F12*D11/100","v":{"v":0,"d":"0.00"}},{"$f":"F12*E11/100","v":{"v":0,"d":"0.00"}}]
[null,null,"Число членов профсоюза"]
[null,null,"Охват профчленством (%)"]
[null,null,"Среднемесячный размер профвзносов (руб)",{"$f":"F12/12","v":{"v":0,"d":"0.00"}}]
[null,null,"Переплата по профвзносам на 01.01.2023"]
[null,null,"Задолженность по профвзносам на 01.01.2023",null,{"v":0,"d":"0.00"}]
[null,null,"ЗАДОЛЖЕННОСТЬ ПО ПРОФВЗНОСАМ  ЗА  2023 Г",null,{"$f":"E12-F85+E17-E16","v":{"v":0,"d":"0.00"}}]
[]
[{"$nulls":3},"ИСПОЛНЕНИЕ СМЕТЫ"]
[{"$nulls":5},"таблица 2"]
[null,"№ п/п","Наименование статей",null,null,"сумма"]
[null,null,"Остаток на 1 января 2023 г"]
[null,null,"ДОХОДЫ (КРЕДИТ СЧЕТА 86)"]
[null,1,"Членские профсоюзные взносы",null,null,{"$f":"F12","v":{"v":0,"d":"0.00"}}]
[null,2,"Добровольные взносы"]
[null,3,"Поступления по коллективным  договорам (соглашениям) на проведение социально-культурных и других мероприятий "]
[null,4,"Целевое финансирование из бюджета ЦК Профсоюза"]
[null,5,"Прочие поступления"]
[null,"5.1","Целевое финансирование из бюджетов всех уровней (кроме бюджета ЦК) средства Рескома",null,null,{"$f":"F31+F32+F33+F34+F35+F36+F37+F38","v":{"v":0,"d":"0.00"}}]
[null,null," - материальная помощь членам профсоюза"]
[null,null," - премирование профактива"]
[null,null," - на проведение спортивных мероприятий"]
[null,null," - возврат из кассы КВП (уменьшение фонда)"]
[null,null," - целевое финансирование (возвратное)"]
[null,null," - возврат из Фонда \"Защита.Гарантия.Солидарность.\""]
[null,null," - стипендия "]
[null,null," - новогодние утренники (и другие культурно-массовые мероприятия)"]
[null,"5.2","Проценты банка по остатку на расчетном счете"]
[null,"5.3","Проценты по депозитным счетам в учреждениях банка"]
[null,"5.4","Чистая прибыль от реализации"]
[]
[null,null,"ВСЕГО ДОХОДОВ",null,null,{"$f":"F25+F27+F30+F39+F26+F28+F29+F40+F41","v":{"v":0,"d":"0.00"}}]
[null,null,"РАСХОДЫ"]
[null,null,"Целевые мероприятия",null,null,{"$f":"F47+F48+F49+F51+F52+F55+F59","v":{"v":0,"d":"0.00"}}]
[null,null,"в том числе: "]
[null,null,"1.1. - информационно-пропагандистская работа"]
[null,null,"1.2. - подготовка и обучение профсоюзных кадров и актива"]
[null,null,"1.3. - работа с молодежью"]
[null,1,"         в т.ч. из средств Рескома (стипендия)"]
[null,null,"1.4. -проведение конференций, совещаний"]
[null,null,"1.5.- культурно-масовые мероприятия"]
[null,null,"         в т.ч. из средств Рескома",null,null,{"$f":"F38","v":{"v":0,"d":"0.00"}}]
[null,null,"1.5.1.- заработная плата с начислениями персоналу по культработе"]
[null,null,"1.6.-физкультурно-оздоровительные мероприятия"]
[null,null,"         в т.ч. из средств Рескома"]
[null,null,"в том числе: "]
[null,null,"1.6.1.-заработная плата с начислениями персоналу по спортработе"]
[null,null,"1.7.- проведение отдельных мероприятий"]
[]
[]
[null,2,"Фонд солидарности"]
[]
[null,null,"Материальная помощь членам профсоюза "]
[null,3," в т.ч. из средств Рескома",null,null,{"$f":"F31","v":{"v":0,"d":"0.00"}}]
[null,null,"Премирование профактива"]
[null,4," в т.ч. из средств Рескома",null,null,{"$f":"F32","v":{"v":0,"d":"0.00"}}]
[null,5,"Международная работа"]
[null,6,"Содержание аппарата управления",null,null,{"$f":"F71+F72+F73+F74+F75+F76+F77+F78","v":{"v":0,"d":"0.00"}}]
[null,null,"в том числе:"]
[null,null,"6.1.- оплата труда с начислениями"]
[null,null,"6.2.- выплаты не связанные с оплатой труда"]
[null,null,"6.3.- служебные командировки и деловые поездки"]
[null,null,"6.4.- содержание помещений, зданий, автомобильного транспорта и иного имущества (кроме ремонта)"]
[null,null,"6.5.-ремонт основных средств и иного имущества"]
[null,null,"6.6.- приобретение основных средств"]
[null,null,"6.7 - хозяйственные расходы"]
[null,null,"6.8.- прочие"]
[null,null,"Другие Фонды:",null,null,{"$f":"F80+F81+F82","v":{"v":0,"d":"0.00"}}]
[null,null,"отчисления в ФОНД ЗАЩИТА.ГАРАНТИЯ. СОЛИДАРНОСТЬ"]
[null,7,"отчисления в ФОНД КВП"]
[null,null,"погашение целевого финансирования"]
[]
[null,8,"Расходы из средств, поступивших по коллективным договорам (соглашениям) на проведение социально-культурных и других мероприятий",null,null,{"$f":"F27","v":{"v":0,"d":"0.00"}}]
[null,9,"Перечисления вышестоящим органам"]
[null,10,"Расходы целевого финансирования, поступившего из бюджета ЦК Профсоюза:",null,null,{"$f":"F28","v":{"v":0,"d":"0.00"}}]
[null,11,"Прочие расходы (Банковские услуги)"]
[null,null,"ВСЕГО РАСХОДОВ",null,null,{"$f":"F86+F85+F84+F79+F69+F66+F64+F45+F62+F68+F87","v":{"v":0,"d":"0.00"}}]
[null,null,"ОСТАТОК СРЕДСТВ НА КОНЕЦ ОТЧЕТНОГО ПЕРИОДА",null,null,{"$f":"F23+F43-F88","v":{"v":0,"d":"0.00"}}]
[]
[]
[]
[null,null,"СВЕРКА по ФОНДУ ЗАЩИТА. ГАРАНТИЯ. СОЛИДАРНОСТЬ."]
[null,null,"ОСТАТОК СРЕДСТВ В ФОНДЕ ЗАЩИТА. ГАРАНТИЯ. СОЛИДАРНОСТЬ  (В РЕСКОМЕ) НА 01.01. 2023","ОПЛАЧЕНО ","ВОЗВРАЩЕНО ИЗ ФОНДА","ОСТАТОК СРЕДСТВ В ФОНДЕ ЗАЩИТА. ГАРАНТИЯ. СОЛИДАРНОСТЬ  (В РЕСКОМЕ) НА 31.12. 2023"]
[null,null,{"v":0,"d":"0.00"},{"$f":"F80","v":{"v":0,"d":"0.00"}},{"$f":"F36","v":{"v":0,"d":"0.00"}},{"$f":"C95+D95-E95","v":{"v":0,"d":"0.00"}}]
[null,null,"ДОЛГ НА 01.01.2023"]
[null,null,"ПЕРЕПЛАТА НА 01.01.2023",{"v":0,"d":"0.00"}]
[null,null,"НАСЧИСЛЕНО ЗА  2023 Г",{"$f":"F12/100*3","v":{"v":0,"d":"0.00"}}]
[null,null,"К ПЛАТЕЖУ В 2023 Г",{"$f":"D98+D96-D97-D95","v":{"v":0,"d":"0.00"}}]
[]
[]
[]
[null,null,"СВЕРКА ПО ФОНДУ КВП"]
[null,null,"ОРГАНИЗАЦИОНЫЙ ВЗНОС ППО В ФОНД КВП"]
[null,null,"ЗАДОЛЖЕННОСТЬ СОТРУДНИКОВ НА 31.12.2023Г"]
[]
[]
[null,null,"Председатель ПО"]
[{"$nulls":3},"расшифровка"]
[null,null,"Бухгалтер (казначей)"]
[{"$nulls":3},"расшифровка"]
[null,null,"Тел."]
[]
[null,null,"Эл.адрес"]

{"sheet":"Лист1","index":1,"n_rows":26,"n_cols":4,"rows_kept":26}
{"$rows_empty":13}
["СВЕРКА по ФОНДУ ЗАЩИТА. ГАРАНТИЯ. СОЛИДАРНОСТЬ."]
["ОСТАТОК СРЕДСТВ В ФОНДЕ ЗАЩИТА. ГАРАНТИЯ. СОЛИДАРНОСТЬ  (В РЕСКОМЕ) НА 01.01. 2023","ОПЛАЧЕНО В 2022 Г","ВОЗВРАЩЕНО ИЗ ФОНДА","ОСТАТОК СРЕДСТВ В ФОНДЕ ЗАЩИТА. ГАРАНТИЯ. СОЛИДАРНОСТЬ  (В РЕСКОМЕ) НА 30.06. 2023"]
[{"v":0,"d":"0.00"},{"$f":"D1","v":{"v":0,"d":"0.00"}},{"$f":"#REF!","v":{"$error":"#REF!"}},{"$f":"A16+B16-C16","v":{"$error":"#REF!"}}]
["ДОЛГ НА 01.01.2023"]
["ПЕРЕПЛАТА НА 01.01.2023",{"v":0,"d":"0.00"}]
["НАСЧИСЛЕНО ЗА 1 полугодие 2023 Г",{"$f":"#REF!/100*3","v":{"$error":"#REF!"}}]
["К ПЛАТЕЖУ В 2023 Г",{"$f":"B19+B17-B18-B16","v":{"$error":"#REF!"}}]
[]
[]
[]
["СВЕРКА ПО ФОНДУ КВП"]
["ОРГАНИЗАЦИОНЫЙ ВЗНОС ППО В ФОНД КВП"]
["ЗАДОЛЖЕННОСТЬ СОТРУДНИКОВ НА 30.06.2023Г"]